[Event "Uppsala GM June 2022"]
[Site "Uppsala"]
[Date "2022.06.18"]
[Round "7.4"]
[White "Chatalbashev, Boris"]
[Black "Larkin, Vladyslav"]
[Result "1/2-1/2"]
[ECO "E11"]
[WhiteElo "2536"]
[BlackElo "2430"]
[Annotator "TA"]
[PlyCount "174"]
[EventDate "2022.06.09"]
[EventType "tourn"]
[EventCountry "SWE"]
[SourceTitle "playchess.com"]
[Source "ChessBase"]
[SourceQuality "1"]
[TimeControl "5400+30"]

{[%evp 9,174,24,39,39,49,43,39,25,34,39,64,24,45,39,47,15,21,15,39,19,29,18,28,12,19,19,19,19,19,18,20,14,35,12,18,18,10,0,0,-33,-14,-64,-68,-123,-121,-124,-117,-162,-158,-187,-185,-171,-125,-162,-168,-129,-79,-148,-81,-83,-83,-90,-88,-88,-46,-75,-64,-63,-81,-84,-50,-59,-49,-107,-59,-73,0,0,0,0,0,0,0,0,0,0,0,0,0,0,0,0,0,0,0,0,0,0,0,0,0,0,0,0,0,0,0,0,0,0,0,0,0,0,0,0,0,0,0,0,0,0,0,0,0,0,8,0,0,0,0,0,0,0,0,0,0,0,0,0,0,0,0,0,0,0,0,0,0,0,0,0,0,0,8,8,8,8,8,8,8,8,8,8,8,0,0]} 1. d4 {[%emt 0:00:45] Krasenkow,Michal} Nf6 {[%emt 0:07:17]} 2. c4 {[%emt 0:00:07]} e6 {[%emt 0:00:04]} 3. Nf3 {[%emt 0:00:11]} Bb4+ {[%emt 0:01:37]} 4. Nbd2 {[%emt 0:00:12]} a5 {[%emt 0:00:31]} 5. a3 {[%emt 0:03:08]} Be7 {[%emt 0:00:05]} 6. e4 {[%emt 0:00:23][%cal Be2e4,Be4e5][%mdl 32] E11: Bogo-Indian.} d5 {[%emt 0:00:04]} 7. e5 {[%emt 0:00:14]} Nfd7 {[%emt 0:00:05]} 8. cxd5 {[%emt 0:01:46] White is slightly better.} exd5 {[%emt 0:00:04]} 9. Nb1 {[%emt 0:01:07]} Nb6 {[%emt 0:10:39]} 10. Nc3 {[%emt 0:00:33]} Nc6 {[%emt 0:01:33]} 11. h3 {[%emt 0:04:27]} Bf5 {[%emt 0:00:58] [#]} 12. Bb5 $146 {[%emt 0:01:03]} ({Predecessor:} 12. Bd3 Bxd3 13. Qxd3 a4 14. O-O O-O 15. Re1 Qd7 16. Bg5 Nd8 17. Bxe7 Qxe7 18. Nh2 {½-½ (36) Wojtaszek,R (2744)-Ivanchuk,V (2715) Wijk aan Zee 2015 CBM 165 [Krasenkow,Michal]}) 12... O-O {[%emt 0:00:47]} 13. O-O {[%emt 0:00:06]} Na7 {[%emt 0:23:07]} 14. Be2 {[%emt 0:00:23]} f6 {[%emt 0:00:12]} 15. exf6 {[%emt 0:13:27]} Bxf6 {[%emt 0:01:15]} 16. Bf4 {[%emt 0:00:07]} Nac8 {[%emt 0:03:44]} 17. Nb5 {[%emt 0:07:29][%cal Bc3b5,Bb5c7,Bc7e6][%mdl 32]} c6 {[%emt 0:04:50]} 18. Nc7 {[%emt 0:00:14]} Ra7 {[%emt 0:00:04]} 19. Bd3 {[%emt 0:00:18]} Qd7 {[%emt 0:08:55]} 20. Re1 {[%emt 0:00:49]} Nc4 {[%emt 0:07:29]} 21. Bxf5 {[%emt 0:00:52]} (21. Re2 $5 {[%cal Rd3f5]}) 21... Qxf5 {[%emt 0:01:21]} 22. Ne6 {[%emt 0:00:07]} Re8 {[%emt 0:09:12]} 23. g4 {[%emt 0:04:22]} Qg6 {[%emt 0:00:03]} 24. Qc1 {[%emt 0:17:17]} a4 {[%emt 0:00:45]} 25. Bb8 {[%emt 0:00:28]} (25. Nc5 $11) 25... Ra8 $15 {[%emt 0:00:23]} 26. Qf4 {[%emt 0:00:07]} (26. Bf4 $15 N8d6 27. Bxd6 Nxd6 28. Kg2) 26... N8b6 {[%emt 0:03:01]} 27. Bc7 {[%emt 0:03:01] [#]} Nd7 {[%emt 0:00:49]} 28. g5 {[%emt 0:01:41] [#]} Be5 $1 {[%emt 0:02:39][%mdl 512]} 29. Nxe5 {[%emt 0:04:53]} (29. dxe5 Qxe6) 29... Ndxe5 {[%emt 0:00:45]} 30. Bxe5 {[%emt 0:07:32]} Rxe6 {[%emt 0:00:31]} 31. Qg4 {[%emt 0:00:12]} Rf8 {[%emt 0:01:01]} ({Not} 31... Nxb2 32. Rab1 Nd3 33. Rxb7 $11) 32. f4 {[%emt 0:00:19]} Qf5 {[%emt 0:00:45]} ({Weaker is} 32... Nxb2 33. Rab1 Nd3 34. Rxb7 $15) ({Black should try} 32... h6 33. h4 h5) 33. Bc7 {[%emt 0:06:22]} (33. Qxf5 $142 Rxf5 34. Rf1) 33... Qxg4+ {[%emt 0:08:53]} (33... Re4 $142 {Hoping for ...Qf7.} 34. Qxf5 Rxf5 35. Rxe4 dxe4) 34. hxg4 $17 {[%emt 0:00:39]} Ne3 {[%emt 0:00:23]} 35. Re2 {[%emt 0:09:40]} Rfe8 {[%emt 0:00:05]} 36. Rae1 {[%emt 0:01:02]} g6 {[%emt 0:01:00]} (36... Kf7 {keeps more tension.} 37. f5 Re4 38. Kf2 Nc4) 37. Be5 {[%emt 0:06:17]} Nxg4 {[%emt 0:00:14]} 38. Kg2 {[%emt 0:00:16]} Nxe5 {[%emt 0:02:36]} 39. fxe5 $15 {[%emt 0:01:16][%mdl 4096] Endgame KRR-KRR} Kg7 {[%emt 0:00:34]} 40. Kg3 {[%emt 0:00:39]} Rf8 {[%emt 0:00:37]} 41. Rh1 {[%emt 0:00:38]} (41. b3 $15) 41... Rf5 {[%emt 0:00:20]} ({Better is} 41... Re7 $17 {Threatens to win with ...Ref7.} 42. Rf2 Rxf2 43. Kxf2 Rf7+ 44. Ke3 Rf5) 42. Kg4 {[%emt 0:00:05]} c5 {[%emt 0:01:42]} (42... Kg8 $17) 43. Reh2 $11 {[%emt 0:01:01] The position is equal.} cxd4 {[%emt 0:00:26]} 44. Rxh7+ {[%emt 0:00:12]} Kf8 {[%emt 0:00:01]} (44... Kg8 $2 {leads to mate.} 45. Rh8+ Kg7 46. R1h7#) 45. Rxb7 {[%emt 0:00:39][%cal Rh1h8]} Kg8 {[%emt 0:01:01] Inhibits Rh8+.} 46. Rb8+ {[%emt 0:01:33]} Rf8 $1 {[%emt 0:00:03]} 47. Rxf8+ {[%emt 0:00:30]} Kxf8 {[%emt 0:00:02] KR-KR} 48. Kf4 {[%emt 0:01:19]} Rb6 {[%emt 0:00:42]} 49. Rd1 {[%emt 0:01:21]} Rxb2 {[%emt 0:00:27]} 50. Rxd4 {[%emt 0:00:04]} Rf2+ {[%emt 0:00:52]} 51. Ke3 {[%emt 0:01:36]} Rg2 {[%emt 0:00:12]} 52. Rxa4 {[%emt 0:01:40]} Rxg5 {[%emt 0:00:07]} 53. Ra8+ {[%emt 0:00:10]} Ke7 {[%emt 0:00:09]} 54. Kd4 {[%emt 0:00:04] Ra7+ is the strong threat.} Rg1 {[%emt 0:00:18]} 55. Ra7+ {[%emt 0:00:25]} Ke6 {[%emt 0:00:25]} 56. Ra6+ {[%emt 0:00:05]} Ke7 {[%emt 0:00:05]} 57. a4 {[%emt 0:01:02]} Rd1+ {[%emt 0:00:09]} 58. Kc5 {[%emt 0:00:06]} Rc1+ {[%emt 0:00:43]} 59. Kxd5 {[%emt 0:00:11]} Rd1+ {[%emt 0:00:04]} 60. Kc5 {[%emt 0:01:20]} Rc1+ {[%emt 0:00:04]} 61. Kb6 {[%emt 0:00:51]} Rb1+ {[%emt 0:01:24]} 62. Kc7 {[%emt 0:00:40]} g5 {[%emt 0:01:06]} 63. a5 {[%emt 0:01:00]} g4 {[%emt 0:00:31]} 64. Rg6 {[%emt 0:00:16]} Rc1+ {[%emt 0:00:30]} 65. Kb6 {[%emt 0:00:24]} Rb1+ {[%emt 0:00:05]} 66. Kc5 {[%emt 0:00:48]} Ra1 {[%emt 0:01:04]} 67. a6 {[%emt 0:00:10]} g3 {[%emt 0:00:20]} 68. a7 {[%emt 0:00:06]} Kf7 {[%emt 0:00:49]} 69. Rf6+ {[%emt 0:00:49]} Ke7 {[%emt 0:00:06]} 70. Kb6 {[%emt 0:01:00] And now Rg6 would win.} Rb1+ {[%emt 0:01:09]} (70... g2 $5 71. Rg6 Rb1+ 72. Kc6 Rc1+ 73. Kd5 Rd1+ 74. Kc6 Rc1+ 75. Kb7 Rb1+ 76. Kc6 Rc1+ $16) 71. Kc7 {[%emt 0:00:35]} Ra1 {[%emt 0:00:06]} 72. Kb7 {[%emt 0:00:29]} Rb1+ {[%emt 0:00:10]} 73. Kc8 {[%emt 0:00:47]} Rc1+ {[%emt 0:00:44]} 74. Kb8 {[%emt 0:00:07]} Rb1+ {[%emt 0:00:12]} 75. Kc7 {[%emt 0:00:05]} Ra1 {[%emt 0:00:14]} 76. Kb6 {[%emt 0:00:15][%cal Of6f1] Strongly threatening Rf1!} Rb1+ {[%emt 0:00:05]} (76... g2 $5 77. Rg6 Rb1+ 78. Kc6 Rc1+ 79. Kd5 Rd1+ 80. Kc6 Rc1+ 81. Kd5 Rd1+ 82. Kc6 Rc1+ $14) 77. Kc5 {[%emt 0:00:25]} Ra1 {[%emt 0:01:09]} 78. Rg6 {[%emt 0:00:07]} Kf7 {[%emt 0:00:05]} 79. Rxg3 {[%emt 0:00:17] White threatens Kb6 and mate.} Rxa7 {[%emt 0:00:04]} 80. Kd5 {[%emt 0:00:14]} Ra6 {[%emt 0:00:44]} 81. Rb3 {[%emt 0:00:10]} Ke7 {[%emt 0:00:25]} 82. Rb7+ {[%emt 0:00:07]} Ke8 {[%emt 0:00:05]} 83. Rc7 {[%emt 0:00:14]} Kd8 {[%emt 0:00:37]} 84. Rh7 {[%emt 0:00:07]} Ke8 {[%emt 0:00:07]} 85. Ke4 {[%emt 0:00:06]} Ra4+ {[%emt 0:00:29]} 86. Kf5 {[%emt 0:00:08]} Ra6 {[%emt 0:00:04]} 87. e6 {[%emt 0:00:25] Kf6 would kill now.} Ra1 {[%emt 0:00:05] And White is the lucky defender.  Weighted Error Value: White=0.12 (very precise) /Black=0.08 (flawless)} 1/2-1/2

[Event "Uppsala GM June 2022"]
[Site "Uppsala"]
[Date "2022.06.18"]
[Round "7.5"]
[White "Trost, Edvin"]
[Black "Sorensen, Hampus"]
[Result "0-1"]
[ECO "D43"]
[WhiteElo "2366"]
[BlackElo "2372"]
[Annotator "TA"]
[PlyCount "84"]
[EventDate "2022.06.09"]
[EventType "tourn"]
[EventCountry "SWE"]
[SourceTitle "playchess.com"]
[Source "ChessBase"]
[SourceQuality "1"]
[TimeControl "5400+30"]

{[%evp 21,84,14,22,21,23,27,31,35,14,13,31,14,26,14,17,8,4,3,12,17,23,16,50,-7,22,15,14,-138,-135,-136,-140,-154,-98,-106,-15,-53,-62,-137,-57,-57,-42,-412,-381,-377,-381,-283,-141,-110,-53,-315,-315,-315,-315,-326,-326,-323,-335,-1106,-307,-1078,-1010,-1156,-973,-868,-859]} 1. d4 {[%emt 0:00:05]} d5 {[%emt 0:00:09]} 2. c4 {[%emt 0:00:50]} c6 {[%emt 0:00:05]} 3. Nf3 {[%emt 0:00:12]} Nf6 {[%emt 0:00:08]} 4. Nc3 {[%emt 0:00:12]} e6 {[%emt 0:01:10]} 5. Bg5 {[%emt 0:00:25]} h6 {[%emt 0:00:22]} 6. Bxf6 {[%emt 0:00:28]} Qxf6 {[%emt 0:00:08]} 7. e3 {[%emt 0:00:02]} Nd7 {[%emt 0:05:12]} 8. Be2 {[%emt 0:00:39]} dxc4 {[%emt 0:12:30]} 9. Bxc4 {[%emt 0:00:45]} g6 {[%emt 0:02:14]} 10. O-O {[%emt 0:00:07]} Bg7 {[%emt 0:00:10]} 11. e4 {[%emt 0:00:08]} e5 {[%emt 0:00:20][%cal Re5d4]} 12. d5 {[%emt 0:00:08] D43: Semi-Slav: 5 Bg5 h6.} O-O {[%emt 0:00:49]} 13. dxc6 {[%emt 0:03:38]} bxc6 {[%emt 0:00:21]} 14. h3 {[%emt 0:02:08] White is slightly better.} Rd8 {[%emt 0:06:35]} 15. Qe2 {[%emt 0:05:32]} Nb6 {[%emt 0:00:20]} 16. Ba6 {[%emt 0:02:36]} (16. Bb3 {with more complications.} a5 17. Qe3 a4 18. Bxf7+ Qxf7 19. Qxb6 Bxh3 20. Rad1) 16... Be6 {[%emt 0:01:56] [#]} 17. Rfc1 $146 {[%emt 0:08:57]} ({Predecessor:} 17. b3 h5 18. Rac1 Bh6 19. Rc2 Rd6 20. Rd1 Bd7 21. Re1 Qe7 22. Nd1 f6 23. Nb2 {½-½ (30) Konsala,K (2455)-Tomson,H (2382) ICCF email 2014}) 17... Rd6 {[%emt 0:01:55]} 18. Rc2 {[%emt 0:00:20]} Rad8 {[%emt 0:00:25]} 19. b3 {[%emt 0:01:28]} Bf8 {[%emt 0:05:33]} 20. Nd1 {[%emt 0:00:50]} h5 {[%emt 0:06:24][%cal Ob6d5]} 21. Nb2 {[%emt 0:00:57]} Bh6 {[%emt 0:00:37]} 22. Nd3 {[%emt 0:00:58]} (22. Rd1 $14) 22... Nd7 {[%emt 0:13:18]} (22... Nd5 $5) 23. Re1 {[%emt 0:02:37]} g5 {[%emt 0:08:56]} 24. Bc4 $2 {[%emt 0:09:49]} (24. Nh2 $1 $11) 24... g4 $17 {[%emt 0:02:07]} 25. Nh2 {[%emt 0:01:21]} Bxc4 {[%emt 0:01:13]} (25... gxh3 26. g3 $17) 26. Rxc4 {[%emt 0:30:54]} gxh3 {[%emt 0:00:07]} (26... Nf8 $142 $1 27. hxg4 Rxd3 28. gxh5 Bg7) 27. g3 {[%emt 0:06:04]} h4 {[%emt 0:02:01]} (27... Nf8 $1 $17 28. Rc3 Bg5) 28. Ng4 {[%emt 0:03:30]} Qg7 {[%emt 0:04:08] aiming for ...Nf6.} 29. Kh2 {[%emt 0:01:10]} (29. Rc2 $15) 29... hxg3+ {[%emt 0:01:12]} ({Black should try} 29... Nf6 $1 $17 {[%cal Rf6g4]} 30. Nxf6+ (30. Ngxe5 $2 Rxd3 31. Nxd3 Rxd3 $19) (30. Ndxe5 $2 hxg3+ 31. Kxg3 Nh5+ 32. Kh2 Bf4+ 33. Kh1 Bxe5 $19) 30... Qxf6) 30. fxg3 $15 {[%emt 0:00:47]} Rg6 $36 {[%emt 0:01:56][%mdl 2048] Black has good play.} 31. Kxh3 {[%emt 0:01:27][%mdl 8192]} (31. Ndf2 $15) 31... Nf6 {[%emt 0:04:56][%cal Rg6g4]} ({And not} 31... Bd2 32. Rf1 $11) 32. Nxf6+ {[%emt 0:02:37]} Qxf6 {[%emt 0:00:23]} 33. Rf1 {[%emt 0:01:23] Prevents Bf4.} Qh8 {[%emt 0:01:45]} ({Weaker is} 33... Bf4 34. Nxf4 exf4 35. Rxf4 $11) (33... Qg7 $19 {and Black stays clearly on top.} 34. g4 Bg5) 34. Kg2 $17 {[%emt 0:01:17]} Qg7 {[%emt 0:00:04]} (34... Rdd6 $1 $17 {And now ...Qg7 would win.} 35. b4 Qg7) 35. Qf3 $2 {[%emt 0:04:58][%mdl 8192] [#]} (35. Rf3 $1 $15) 35... Rdd6 $1 $19 {[%emt 0:00:09]} 36. Nf2 {[%emt 0:02:10]} Bf4 {[%emt 0:03:30][%cal Rg6g3]} 37. Nh1 {[%emt 0:01:16]} Qh7 {[%emt 0:02:24]} 38. Rc2 {[%emt 0:03:50]} Rh6 {[%emt 0:00:02] White must now prevent ...Rh2+.} 39. Kg1 {[%emt 0:02:00] [#] Prevents Rh2.} (39. Nf2 Rh2+ 40. Kg1) 39... Rdg6 $2 {[%emt 0:00:12]} (39... Be3+ $1 {[%mdl 512]} 40. Nf2 Rd3) 40. Re2 $2 {[%emt 0:00:46]} (40. Rc3) 40... Rh3 {[%emt 0:00:38][%cal Rf4g3] Black is clearly winning.} 41. Kf2 {[%emt 0:00:01]} Bg5 {[%emt 0:01:15] Hoping for ...Rf6.} 42. Ke1 {[%emt 0:00:14]} Rf6 {[%emt 0:00:26] Weighted Error Value: White=0.79/Black=0.33} 0-1

[Event "Uppsala GM June 2022"]
[Site "Uppsala"]
[Date "2022.06.18"]
[Round "8.1"]
[White "Larkin, Vladyslav"]
[Black "Nilsson, Joakim"]
[Result "1-0"]
[ECO "A13"]
[WhiteElo "2430"]
[BlackElo "2237"]
[Annotator "TA"]
[PlyCount "83"]
[EventDate "2022.06.09"]
[EventType "tourn"]
[EventCountry "SWE"]
[SourceTitle "playchess.com"]
[Source "ChessBase"]
[SourceQuality "1"]
[TimeControl "5400+30"]

{[%evp 9,83,15,19,6,15,4,9,12,8,10,12,12,12,8,8,12,8,0,13,0,14,5,20,12,16,0,8,14,29,17,37,37,20,21,19,8,45,6,7,-24,-24,-28,0,-40,-50,-46,-46,-50,-42,-64,-20,-44,-49,-41,25,-30,0,-52,-22,-40,-14,-22,-25,-27,-14,-21,-12,-22,0,0,685,689,662,637,29995,29996]} 1. c4 {[%emt 0:00:04]} e6 {[%emt 0:00:05]} 2. Nf3 {[%emt 0:00:23]} d5 {[%emt 0:00:21]} 3. g3 {[%emt 0:00:15]} Nf6 {[%emt 0:00:08]} 4. Bg2 {[%emt 0:00:06]} dxc4 {[%emt 0:01:01]} 5. Qa4+ {[%emt 0:00:09]} Bd7 {[%emt 0:00:18]} 6. Qxc4 {[%emt 0:00:06] A13: English Opening: 1...e6.} c5 {[%emt 0:01:22]} 7. Ne5 {[%emt 0:00:13]} Qc8 {[%emt 0:01:03]} 8. Qd3 $1 {[%emt 0:00:25] The position is equal. 8.Qd3 is better than 8.0-0.} Nc6 {[%emt 0:05:39]} 9. Nxd7 {[%emt 0:00:07]} Nxd7 {[%emt 0:01:53]} 10. Nc3 {[%emt 0:00:51]} Be7 {[%emt 0:00:33]} 11. O-O {[%emt 0:00:57]} O-O {[%emt 0:00:13]} 12. b3 {[%emt 0:02:10]} Rd8 {[%emt 0:00:30]} 13. Qc2 {[%emt 0:06:20]} Nf6 {[%emt 0:00:38]} 14. Bb2 {[%emt 0:00:55]} Qd7 {[%emt 0:00:15]} 15. d3 {[%emt 0:00:37]} Rac8 {[%emt 0:00:08]} 16. Rac1 {[%emt 0:01:05]} b6 {[%emt 0:01:06]} 17. Rfd1 $1 {[%emt 0:17:32] [#]} Nd4 $146 {[%emt 0:07:01]} ({Predecessor:} 17... h6 18. Qb1 Ne8 19. e3 Bf6 20. a3 h5 21. Ba1 Qe7 {½-½ (48) Andersen,M (2605)-Diermair,A (2507) Batumi 2018}) 18. Qd2 {[%emt 0:00:58]} Bf8 {[%emt 0:11:25]} 19. e3 {[%emt 0:01:07]} Nc6 {[%emt 0:01:50]} 20. Qe2 {[%emt 0:00:33]} Qe8 {[%emt 0:01:40]} 21. g4 {[%emt 0:17:53]} Nd5 {[%emt 0:05:34]} 22. g5 {[%emt 0:00:37]} Bd6 {[%emt 0:02:52]} 23. h4 {[%emt 0:04:57]} Be5 {[%emt 0:03:02]} 24. Ne4 {[%emt 0:07:10]} Bxb2 {[%emt 0:01:26]} 25. Qxb2 {[%emt 0:00:05]} Qe7 {[%emt 0:01:13]} 26. a3 {[%emt 0:02:24]} f5 {[%emt 0:07:01]} 27. gxf6 {[%emt 0:00:31]} gxf6 {[%emt 0:00:08]} 28. Kh1 {[%emt 0:18:14]} Kh8 {[%emt 0:01:58]} 29. Rg1 {[%emt 0:02:52]} Rg8 {[%emt 0:01:01]} (29... Ne5 $5 {[%cal Re5d3]} 30. Qe2 f5 $15) 30. Bh3 {[%emt 0:00:51] Inhibits Rg4.} Ne5 {[%emt 0:05:59]} 31. Qe2 {[%emt 0:01:26]} Nf7 {[%emt 0:03:12]} (31... Rcf8 $15) 32. f4 {[%emt 0:06:58]} ({White should try} 32. b4 $1) 32... Nd6 {[%emt 0:01:16]} 33. Ng3 {[%emt 0:02:19] Prevents Nf5.} (33. Nxd6 $1 $11 Qxd6 34. b4) 33... Rcf8 {[%emt 0:12:35]} 34. Qf2 {[%emt 0:00:39]} e5 {[%emt 0:01:02]} 35. Qf3 {[%emt 0:05:22] Inhibits e4.} exf4 {[%emt 0:04:45]} 36. exf4 {[%emt 0:00:03]} Qf7 {[%emt 0:00:13]} 37. Rce1 {[%emt 0:01:00] [#] Threatens to win with Be6.} Re8 {[%emt 0:01:39] Against Be6} 38. Rxe8 {[%emt 0:00:41]} Rxe8 {[%emt 0:00:10]} 39. Ne4 $1 {[%emt 0:00:12]} Qe7 {[%emt 0:02:35][%mdl 8192]} (39... Rd8 $11) 40. Nxd6 $18 {[%emt 0:00:30]} Qxd6 {[%emt 0:01:39]} 41. Qg2 {[%emt 0:00:20][%csl Gg1][%cal Rg2g7] [#]} Qc7 {[%emt 0:00:51] Inhibits Qg7+.} 42. Be6 {[%emt 0:00:19] Weighted Error Value: White=0.09 (flawless) /Black=0.52} 1-0

[Event "Uppsala GM June 2022"]
[Site "Uppsala"]
[Date "2022.06.18"]
[Round "8.2"]
[White "Peng, Li Min"]
[Black "Von Bahr, Oskar"]
[Result "1-0"]
[ECO "C33"]
[WhiteElo "2506"]
[BlackElo "2373"]
[Annotator "TA"]
[PlyCount "97"]
[EventDate "2022.06.09"]
[EventType "tourn"]
[EventCountry "SWE"]
[SourceTitle "playchess.com"]
[Source "ChessBase"]
[SourceQuality "1"]
[TimeControl "5400+30"]

{[%evp 9,97,-43,-48,-62,-45,-72,-16,-2,31,-81,-63,-57,-43,-45,-49,-41,-49,-41,-50,-55,-37,-24,-45,-27,-21,-18,-21,-17,-21,-14,-19,-11,-11,-14,-21,-13,-11,-16,-17,-24,-10,-8,0,0,0,0,0,0,0,0,0,0,0,0,0,0,0,0,0,0,0,0,34,77,77,77,85,85,85,100,90,8,178,176,181,177,340,329,1710,1681,1310,1336,5153,5153,29981,29982,29994,29995,29997,29998]} 1. e4 {[%emt 0:02:24]} e5 {[%emt 0:00:21]} 2. f4 {[%emt 0:02:37]} exf4 {[%emt 0:02:25]} 3. Bc4 {[%emt 0:02:55]} Qh4+ {[%emt 0:01:09]} 4. Kf1 {[%emt 0:00:04]} d6 {[%emt 0:01:50]} 5. Nf3 {[%emt 0:00:20]} Qh6 {[%emt 0:07:24]} 6. Nc3 {[%emt 0:00:44] C33: King's Gambit Accepted: 3 Nc3 and 3 Bc4.} Be6 {[%emt 0:01:45]} 7. Qe2 {[%emt 0:00:42]} c6 {[%emt 0:10:01]} (7... Nd7 $17) 8. d4 $11 {[%emt 0:00:11][%cal Oc3d5] The position is equal.} Nd7 {[%emt 0:08:40] [#]} 9. Kg1 $146 {[%emt 0:04:35]} (9. Nd5 $1 $14 O-O-O 10. Bxf4) ({Predecessor:} 9. Bxe6 fxe6 10. e5 d5 11. h4 Ne7 12. g4 Qg6 13. Rg1 h5 14. gxh5 Qxh5 15. Ng5 Qxh4 {0-1 (32) Schenning,A (2015)-Reinderman,D (2571) Maarssen 2013}) 9... Bxc4 {[%emt 0:02:19]} 10. Qxc4 {[%emt 0:00:06]} Ngf6 {[%emt 0:06:39]} 11. Qb3 {[%emt 0:00:14]} Rb8 {[%emt 0:02:18]} 12. Ne2 $1 {[%emt 0:06:01]} Nxe4 {[%emt 0:04:12]} 13. Bxf4 {[%emt 0:00:04]} Qe6 {[%emt 0:03:15]} 14. Qd3 {[%emt 0:00:02]} Be7 {[%emt 0:10:10] And now ...Rd8 would win.} 15. Nc3 {[%emt 0:00:09]} f5 {[%emt 0:02:33]} 16. Re1 {[%emt 0:05:39][%cal Rc3e4]} O-O {[%emt 0:02:12]} 17. Nxe4 {[%emt 0:00:04]} fxe4 {[%emt 0:00:04]} 18. Qxe4 {[%emt 0:00:03]} Qxe4 {[%emt 0:00:19]} 19. Rxe4 {[%emt 0:00:04]} Rbe8 {[%emt 0:01:18] Threatens to win with ...d5.} 20. Kf1 {[%emt 0:00:52][%cal Oe4e7]} d5 {[%emt 0:08:04]} 21. Rxe7 {[%emt 0:00:04]} Rxe7 {[%emt 0:00:05]} 22. Bd6 {[%emt 0:00:03] [#]} Rxf3+ $1 {[%emt 0:01:15]} 23. gxf3 {[%emt 0:00:07][%mdl 4096] Endgame KRB-KRN} Re6 {[%emt 0:00:18]} 24. Bg3 {[%emt 0:00:03]} Kf7 {[%emt 0:00:39]} 25. Kf2 {[%emt 0:00:04]} Kg6 {[%emt 0:01:12]} 26. Rg1 {[%emt 0:00:45]} Kf7 {[%emt 0:03:14]} 27. a4 {[%emt 0:00:18]} a6 {[%emt 0:04:02]} 28. h4 {[%emt 0:00:19]} h5 {[%emt 0:01:03]} 29. a5 {[%emt 0:00:07]} g6 {[%emt 0:03:44]} 30. c3 {[%emt 0:00:07]} Nf6 {[%emt 0:01:08]} 31. Be5 {[%emt 0:00:09]} Ng8 {[%emt 0:00:15]} 32. Kg3 {[%emt 0:01:36]} c5 {[%emt 0:02:15]} 33. b4 {[%emt 0:01:39]} cxb4 {[%emt 0:01:05]} 34. cxb4 {[%emt 0:00:02]} Ne7 {[%emt 0:00:53]} 35. b5 {[%emt 0:00:02]} axb5 {[%emt 0:02:22] ...Ra6 is the strong threat.} 36. Rb1 $1 {[%emt 0:00:01]} Ra6 {[%emt 0:01:33]} 37. Rxb5 {[%emt 0:00:09]} Nf5+ {[%emt 0:01:08]} 38. Kf4 {[%emt 0:00:16] aiming for Kg5.} Nxh4 {[%emt 0:01:37][%cal Og6g5]} 39. Rxb7+ {[%emt 0:00:05]} Ke8 {[%emt 0:01:57]} 40. Rb5 {[%emt 0:00:28] White is more active.} (40. Rb8+ $16 Kd7 41. Rb5) 40... Ng2+ $2 {[%emt 0:00:35] Black cannot hold the game after this.} (40... g5+ $1 $11 41. Kxg5 Nxf3+ 42. Kxh5 Nxe5 43. dxe5 Kd7) 41. Kg5 $18 {[%emt 0:00:29]} Ne1 {[%emt 0:00:24]} 42. Rb3 {[%emt 0:02:22]} ({Inferior is} 42. Rxd5 Nxf3+ 43. Kf4 Nxe5 44. Kxe5 (44. dxe5 Ke7 $11) 44... Ke7 $11) 42... Kf7 $2 {[%emt 0:01:01]} (42... Kd7 43. Re3 Nc2) 43. f4 {[%emt 0:00:19][%cal Bf3f4,Bf4f5,Bf5f6][%mdl 32]} Rxa5 $2 {[%emt 0:01:31]} (43... Ra7 44. Re3 Nc2) 44. Rb7+ {[%emt 0:00:07][%mdl 64] Deflection} Ke8 {[%emt 0:00:50]} 45. Kxg6 {[%emt 0:00:10]} h4 {[%emt 0:00:27]} 46. f5 {[%emt 0:00:39] White wants to mate with f6.} Ra2 {[%emt 0:00:30]} 47. f6 {[%emt 0:00:41] White mates.} Rg2+ {[%emt 0:00:19]} 48. Kf5 {[%emt 0:00:04]} Rf2+ {[%emt 0:00:30]} 49. Ke6 {[%emt 0:00:05] Weighted Error Value: White=0.09 (flawless) /Black=0.35} 1-0